[Event "79th LOTTO Polish-ch 2022"]
[Site "Kruszwica"]
[Date "2022.05.10"]
[Round "1.4"]
[White "Warakomski, Tomasz"]
[Black "Bartel, Mateusz"]
[Result "0-1"]
[ECO "C50"]
[WhiteElo "2534"]
[BlackElo "2619"]
[Annotator "TA"]
[PlyCount "125"]
[EventDate "2022.05.10"]
[EventType "k.o."]
[EventCountry "POL"]
[SourceTitle "playchess.com"]
[Source "ChessBase"]
[SourceQuality "1"]
[TimeControl "40/5400+30:1800+30"]

{[%evp 11,125,8,15,14,27,20,27,-7,0,-14,-7,0,-33,-29,24,6,11,19,20,0,12,9,35,28,55,0,-1,0,0,0,0,0,0,0,0,-19,-15,-14,-16,-6,-8,-21,-11,-16,0,0,0,-9,0,16,0,0,8,0,0,0,0,10,17,26,124,122,146,111,181,181,266,266,246,124,131,137,148,125,138,138,543,529,524,477,630,547,319,210,183,0,172,180,177,150,322,293,318,316,288,290,260,106,220,213,199,0,199,0,0,0,0,0,348,348,348,348,337,0,0,-5065]} 1. e4 {[%emt 1:15:42]} e5 {[%emt 1:15:43]} 2. Nf3 {[%emt 0:01:05]} Nc6 {[%emt 0:00:22]} 3. Bc4 {[%emt 0:00:26]} Nf6 {[%emt 0:00:22]} 4. d3 {[%emt 0:00:21]} Bc5 {[%emt 0:00:27]} 5. O-O {[%emt 0:00:28]} d6 {[%emt 0:00:34]} 6. c3 {[%emt 0:00:41]} a6 {[%emt 0:00:24]} 7. a4 {[%emt 0:00:54] C54: Giuoco Piano: 4 c3 Nf6, main lines with 5 d4 and 5 d3.} Ba7 {[%emt 0:00:39]} 8. Re1 {[%emt 0:00:35]} O-O $1 {[%emt 0:00:49] 8...0-0 scores better than 8...h6.} 9. Bg5 {[%emt 0:00:54] White has an edge.} h6 {[%emt 0:00:23]} 10. Bh4 {[%emt 0:00:28]} g5 {[%emt 0:00:23]} 11. Bg3 {[%emt 0:00:22]} Nh7 {[%emt 0:00:32]} 12. d4 {[%emt 0:04:26][%cal Rd4e5] [#]} Qf6 $146 {[%emt 0:00:43]} ({Black should play} 12... h5 13. h3 (13. dxe5 $2 h4 $19) 13... Qf6) ({Predecessor:} 12... h5 13. h3 Qf6 14. Nbd2 h4 15. Bh2 g4 16. hxg4 Bxg4 17. Bd5 Kh8 18. Kh1 exd4 {½-½ (46) Relyea,A (2332)-Sun,W (2318) ICCF email 2019}) 13. dxe5 $11 {[%emt 0:00:42]} Nxe5 {[%emt 0:00:43]} 14. Nxe5 {[%emt 0:00:55]} dxe5 {[%emt 0:00:22]} 15. Qe2 {[%emt 0:00:40]} g4 {[%emt 0:02:03]} 16. Nd2 {[%emt 0:01:54]} h5 {[%emt 0:00:30] Strongly threatening ...h4.} 17. h4 $1 {[%emt 0:00:22]} Re8 {[%emt 0:00:49]} 18. Nf1 {[%emt 0:01:01]} (18. Kh1 $14) 18... Nf8 {[%emt 0:00:22]} 19. Ne3 {[%emt 0:00:26]} c6 {[%emt 0:00:22]} 20. Rad1 {[%emt 0:01:19]} Ng6 {[%emt 0:00:50]} 21. Nf5 {[%emt 0:00:22]} Bxf5 {[%emt 0:01:37]} 22. exf5 {[%emt 0:00:22]} Qxf5 {[%emt 0:00:29]} 23. Bd3 {[%emt 0:00:45] Inhibits e4.} (23. Qd2 $5 {[%cal Rd2d7]} Nf8 24. Bb3 $11) 23... Qf6 {[%emt 0:03:16]} 24. Bxg6 {[%emt 0:00:28]} Qxg6 {[%emt 0:00:22]} 25. Rd7 $132 {[%emt 0:00:22][%mdl 2048] Prevents Re7. White is not keeping still} (25. Bxe5 $2 g3 26. Rf1 gxf2+ 27. Kh2 Qf5 $19) 25... b5 {[%emt 0:00:21]} 26. Red1 {[%emt 0:01:49]} (26. Bxe5 $2 g3 27. Bxg3 Rxe2 $19) 26... Bc5 {[%emt 0:00:22] Prevents R1d6.} 27. a5 $1 {[%emt 0:00:48]} Ra7 {[%emt 0:02:19]} 28. Rd8 {[%emt 0:00:54]} f6 {[%emt 0:01:24]} 29. b4 {[%emt 0:00:55]} Be7 {[%emt 0:00:33]} 30. Qa2+ {[%emt 0:00:30]} Kg7 {[%emt 0:02:39]} 31. R8d7 {[%emt 0:00:34]} Rxd7 {[%emt 0:00:24]} 32. Rxd7 {[%emt 0:00:21]} Qf7 {[%emt 0:00:31] Inhibits Qe6.} 33. Qd2 {[%emt 0:01:56]} Qe6 $1 {[%emt 0:00:22]} 34. Ra7 {[%emt 0:00:35] Threatening Qe3.} Kg6 {[%emt 0:01:38]} 35. Rxa6 {[%emt 0:00:47]} Rd8 {[%emt 0:02:54]} (35... f5 $1 $11) 36. Qe2 $16 {[%emt 0:00:51]} Qd5 {[%emt 0:00:40] Prevents Qe4+.} 37. Kh2 $1 {[%emt 0:00:35]} Bd6 {[%emt 0:00:28]} (37... Bf8 $16 {was necessary.}) 38. Qe3 $1 $18 {[%emt 0:00:30]} Rd7 {[%emt 0:00:52]} (38... Bc7 {was called for.} 39. Qa7 Rd7) 39. Ra8 $1 {[%emt 0:00:32][%cal Ba6a8,Ba8c8,Bc8c7][%mdl 32]} Kg7 {[%emt 0:00:48]} 40. a6 {[%emt 0:00:33]} (40. Rc8 $1 $18) 40... c5 $16 {[%emt 0:00:21]} 41. Rc8 {[%emt 0:30:40] c4 is the strong threat.} Ra7 {[%emt 0:30:56]} 42. bxc5 {[%emt 0:00:38][%cal Bb4c5,Bc5c6][%mdl 32]} Be7 {[%emt 0:00:22]} 43. c6 $1 {[%emt 0:01:00]} Rxa6 {[%emt 0:00:21][%mdl 8192]} (43... Bc5 $16 44. Qe2 Bd6) 44. Rc7 $18 {[%emt 0:00:21]} Qe6 {[%emt 0:00:33]} 45. Qc5 {[%emt 0:00:25]} Kf8 {[%emt 0:00:28]} 46. Qxb5 {[%emt 0:00:26]} Ra8 {[%emt 0:00:21]} 47. Qb7 {[%emt 0:00:47] Prevents Rc8.} Re8 {[%emt 0:00:21]} 48. Qb5 $2 {[%emt 0:00:38]} (48. Kh1 $18) 48... Rc8 $2 {[%emt 0:00:56]} (48... Ra8 $1 $11) 49. Rxc8+ {[%emt 0:00:47]} Qxc8 {[%emt 0:00:22][%mdl 4096] Endgame KQB-KQB} 50. Qd5 {[%emt 0:00:37] Prevents Bd6.} (50. Qb7 Qxb7 51. cxb7 Bd6 $11) 50... Qd8 $2 {[%emt 0:00:21]} (50... Bd8 $16 51. f4 Bc7) 51. Qe4 {[%emt 0:00:24] Black must now prevent Qh7.} Qd6 {[%emt 0:00:32]} 52. f3 {[%emt 0:00:40]} gxf3 {[%emt 0:00:27]} 53. Qxf3 {[%emt 0:00:21]} Qc5 {[%emt 0:00:27]} 54. Kh3 {[%emt 0:01:03]} (54. Qxh5 $18 {and White stays clearly on top.} Qxc6 55. Qh6+ Kf7 56. Bxe5 $1 {[%mdl 512]}) 54... Kg7 {[%emt 0:00:30]} (54... Qc4 $16 55. Kh2 (55. Qxh5 Qxc6 56. Be1 Qe4 $16) 55... Kg7) 55. Bf2 $1 {[%emt 0:00:26]} (55. Qxh5 $6 Qxc6 56. Qg4+ Kf7) 55... Qc4 {[%emt 0:00:21] [#]} 56. Bb6 $2 {[%emt 0:00:39]} (56. Qxh5 Qxc6 57. Qf3 Qe6+ 58. Qg4+ Kf7) ({White should try} 56. Be3 $1 $18 Bd8 57. Qxh5 Qxc6 58. Bh6+ Kh8 59. Bd2+ (59. Qf7 Qxc3+ 60. Kh2 Qc7 $18) 59... Kg8 60. Qg4+ Kh8 61. Qh5+ Kg7 62. Bh6+ Kh7 63. Bd2+ Kg7 64. Qg4+ Kh8 65. Qh5+) 56... Bd6 $2 {[%emt 0:00:31] [#]} (56... e4 $1 $11 {and Black is okay.} 57. Qxh5 Qd3+ 58. g3 Qb1 59. Qg4+ Kf8) 57. Qg3+ $2 {[%emt 0:00:40]} (57. Qxh5 $6 Qxc6 58. Ba5 Qb5 $16) (57. Bd8 $1 $18 Qe6+ 58. g4) 57... Kf7 $11 {[%emt 0:00:24] Threatens to win with ...Qe6+.} 58. Qf3 {[%emt 0:00:22]} Kg6 {[%emt 0:00:33] aiming for ...e4.} 59. g4 {[%emt 0:00:26] And now Bd8 would win.} Kf7 $2 {[%emt 0:00:40][%mdl 8192]} (59... e4 $1 $11 60. Qf5+ (60. gxh5+ Kf7 $11) 60... Kf7) 60. g5 $18 {[%emt 0:00:33]} ({And not} 60. gxh5 e4 61. Qf5 Qxc3+ 62. Kg2 Qg3+ 63. Kf1 Qd3+ 64. Kg2 Qg3+ 65. Kf1 Qd3+ 66. Kg2 Qg3+ $11) 60... Kg8 {[%emt 0:00:39]} 61. gxf6 {[%emt 0:00:24] Threatening mate with Qg3+.} (61. Qxf6 Qxc6 62. Qg6+ Kf8 63. Qxh5 Qxb6 64. Qh8+ Ke7 65. Qh7+ Kd8 66. Qg8+ Ke7 67. Qh7+ Kd8 68. Qg8+ Ke7 69. Qh7+ $11) 61... Kf8 {[%emt 0:00:30]} 62. f7 $2 {[%emt 0:00:48]} ({Weaker is} 62. Qxh5 Qf1+ 63. Kg4 Qf4+ 64. Kh3 Qf1+ 65. Kg4 Qf4+ 66. Kh3 Qf1+ $11) (62. Be3 $18) 62... e4 $11 {[%emt 0:00:27] Dancing on a razor blade.} 63. Qf2 $2 {[%mdl 8192] Weighted Error Value: White=0.26 (precise) /Black=0.50} (63. Qxh5 $2 {leads to mate.} Qf1+ 64. Kg4 Qf4+ 65. Kh3 Qg3#) (63. Qf6 $11 Qd3+ 64. Kg2 Qg3+ 65. Kf1 Qd3+ 66. Kg2 Qg3+ 67. Kf1 Qd3+ 68. Kg2) 0-1

[Event "79th LOTTO Polish-ch 2022"]
[Site "Kruszwica"]
[Date "2022.05.09"]
[Round "1.5"]
[White "Nasuta, Grzegorz"]
[Black "Piorun, Kacper"]
[Result "1/2-1/2"]
[ECO "C02"]
[WhiteElo "2511"]
[BlackElo "2635"]
[Annotator "TA"]
[PlyCount "62"]
[EventDate "2022.05.10"]
[EventType "k.o."]
[EventCountry "POL"]
[SourceTitle "playchess.com"]
[Source "ChessBase"]
[SourceQuality "1"]
[TimeControl "40/5400+30:1800+30"]

{[%evp 14,62,25,16,25,26,36,25,27,-20,-28,-29,-27,-32,-2,-16,-22,-3,-31,-10,0,-11,-8,-6,0,0,12,-64,-52,-64,74,0,0,-37,0,0,0,0,0,-31,-30,-20,-25,-40,-41,-56,0,-38,0,-56,0]} 1. e4 {[%emt 0:00:03] Shirov,A} e6 {[%emt 0:00:12]} 2. d4 {[%emt 0:00:06]} d5 {[%emt 0:00:07]} 3. e5 {[%emt 0:00:08]} c5 {[%emt 0:00:19]} 4. c3 {[%emt 0:00:05]} Nc6 {[%emt 0:00:05]} 5. Nf3 {[%emt 0:00:09]} Bd7 {[%emt 0:00:07]} 6. Be2 {[%emt 0:01:27]} Nge7 {[%emt 0:00:16]} 7. O-O {[%emt 0:01:53]} Ng6 {[%emt 0:00:18][%cal Be7g6,Bg6h8,Bh8f7,Bf7d6,Bd6f5][%mdl 32]} 8. g3 {[%emt 0:00:47]} Be7 {[%emt 0:03:38] C02: French: Advance Variation.} 9. h4 {[%emt 0:01:30]} O-O {[%emt 0:06:45]} 10. h5 {[%emt 0:02:51]} Nh8 {[%emt 0:00:02] White has an edge.} 11. h6 {[%emt 0:00:41]} (11. dxc5 {might be stronger.} Bxc5 12. c4) 11... g5 $11 {[%emt 0:03:01]} 12. Be3 {[%emt 0:15:13]} cxd4 {[%emt 0:10:45]} 13. cxd4 {[%emt 0:00:54]} f5 {[%emt 0:00:07]} 14. exf6 {[%emt 0:00:20]} Bxf6 {[%emt 0:00:04]} 15. Qd2 {[%emt 0:20:23]} Nf7 {[%emt 0:01:16]} 16. Nc3 {[%emt 0:00:12]} Kh8 {[%emt 0:03:07]} (16... g4 17. Nh2 $14) 17. Kg2 {[%emt 0:00:43]} Rg8 {[%emt 0:03:42]} ({Don't play} 17... g4 18. Nh2 $14) 18. Rh1 {[%emt 0:02:08] [#]} Nd6 $146 {[%emt 0:08:38]} ({Predecessor:} 18... Qe7 19. g4 Raf8 20. Rh3 Nd6 21. Bd3 Be8 22. Re1 Qd8 23. Ne5 Qc7 {1-0 (34) Shirov,A (2686)-Akesson,R (2452) Stockholm 2016 CBM 172 Extra [Shirov,A]}) 19. Rae1 {[%emt 0:27:38]} Nf5 {[%emt 0:20:31]} 20. Bd1 {[%emt 0:11:00]} ({White should play} 20. g4 $11) 20... g4 $15 {[%emt 0:17:49]} 21. Nh2 {[%emt 0:00:10]} Ncxd4 {[%emt 0:00:21] [#]} (21... e5 $15 {keeps the upper hand.} 22. Nxd5 (22. dxe5 Nxe3+ 23. fxe3 Bxe5 $17) 22... Nfxd4) 22. Nxg4 {[%emt 0:02:46]} ({Better is} 22. Bf4 $1 $16) 22... Nxe3+ $11 {[%emt 0:01:01]} 23. Qxe3 {[%emt 0:01:37] Strongly threatening Ne5.} Nf5 {[%emt 0:01:08]} 24. Qf4 {[%emt 0:00:52]} Rf8 {[%emt 0:05:10] aiming for ...Bxc3.} 25. Nxf6 {[%emt 0:02:09]} Qxf6 {[%emt 0:00:19]} 26. Qe5 {[%emt 0:03:58]} Qxe5 {[%emt 0:08:51]} 27. Rxe5 {[%emt 0:00:01]} Rf6 {[%emt 0:00:12]} 28. Bc2 {[%emt 0:03:35]} Nd4 {[%emt 0:01:22]} 29. Bd1 {[%emt 0:00:38]} Nf5 {[%emt 0:00:05]} 30. Bc2 {[%emt 0:00:04]} Nd4 {[%emt 0:04:55]} 31. Bd1 {[%emt 0:00:11]} Nf5 {[%emt 0:00:55] Weighted Error Value: White=0.15 (very precise) /Black=0.18 (very precise)} ({Black should try} 31... Bc6 $15) 1/2-1/2

[Event "79th LOTTO Polish-ch 2022"]
[Site "Kruszwica"]
[Date "2022.05.09"]
[Round "1.6"]
[White "Gumularz, Szymon"]
[Black "Teclaf, Pawel"]
[Result "0-1"]
[ECO "D20"]
[WhiteElo "2513"]
[BlackElo "2537"]
[Annotator "TA"]
[PlyCount "90"]
[EventDate "2022.05.10"]
[EventType "k.o."]
[EventCountry "POL"]
[SourceTitle "playchess.com"]
[Source "ChessBase"]
[SourceQuality "1"]
[TimeControl "40/5400+30:1800+30"]

{[%evp 11,90,27,27,32,33,21,40,30,33,31,30,19,36,34,47,56,63,22,16,0,10,3,6,8,7,0,0,-30,-23,-32,-18,-36,-22,-29,-11,-12,-13,-85,-75,-106,-84,-160,-161,-202,-213,-224,-221,-275,-119,-116,-116,-112,-113,-135,-125,-152,-145,-139,-153,-135,-146,-214,-224,-224,-250,-322,-339,-401,-391,-730,-713,-706,-673,-858,-815,-5477,-5409,-5326,-5245,-1395,-1111]} 1. d4 {[%emt 0:00:04]} d5 {[%emt 0:00:15]} 2. c4 {[%emt 0:00:09]} dxc4 {[%emt 0:00:04]} 3. e3 {[%emt 0:00:32]} e5 {[%emt 0:01:20]} 4. Bxc4 {[%emt 0:00:50]} exd4 {[%emt 0:00:06]} 5. exd4 {[%emt 0:00:59]} Bd6 {[%emt 0:00:05]} 6. Nf3 {[%emt 0:00:36]} Nf6 {[%emt 0:00:05]} 7. Qe2+ {[%emt 0:02:52] D20: Queen's Gambit Accepted: 3 e3 and 3 e4.} Qe7 {[%emt 0:04:30]} 8. Qxe7+ {[%emt 0:00:23]} Bxe7 {[%emt 0:04:17]} 9. O-O {[%emt 0:01:33] White is slightly better.} O-O {[%emt 0:00:05]} 10. Nc3 {[%emt 0:05:04]} Bd6 {[%emt 0:12:07]} 11. Bg5 {[%emt 0:04:43]} Nc6 {[%emt 0:25:00]} 12. Rfe1 {[%emt 0:19:08]} Bf5 {[%emt 0:09:42]} 13. Bxf6 {[%emt 0:09:40]} gxf6 {[%emt 0:00:07] [#]} 14. Nd5 $146 {[%emt 0:04:49]} ({Predecessor:} 14. Ne4 Kg7 15. Nxd6 cxd6 16. d5 Ne5 17. Nd4 Bd7 18. Be2 Rac8 19. f4 Ng6 20. g3 {1-0 (59) Ponkratov,P (2605)-Magalashvili,D (2506) Amol 2018}) 14... Kg7 {[%emt 0:05:36]} 15. Ne3 {[%emt 0:00:58] Pair of Knights!} Bg6 {[%emt 0:02:58]} 16. Rad1 {[%emt 0:02:51]} Rad8 {[%emt 0:07:25]} 17. a3 {[%emt 0:11:13]} Ne7 {[%emt 0:06:05]} 18. Bd3 {[%emt 0:07:52]} Rfe8 {[%emt 0:02:33]} 19. g4 {[%emt 0:05:32]} c6 {[%emt 0:02:12]} 20. Kg2 {[%emt 0:07:19]} Bc7 {[%emt 0:01:53]} 21. h4 {[%emt 0:06:30]} h5 {[%emt 0:03:09]} 22. Bxg6 {[%emt 0:05:32]} fxg6 {[%emt 0:01:58]} 23. gxh5 {[%emt 0:00:26]} gxh5 {[%emt 0:00:08]} 24. Rg1 {[%emt 0:01:50]} (24. d5 $11 {keeps the balance.}) 24... Kf7 {[%emt 0:01:02]} 25. Kf1 {[%emt 0:00:14]} Bf4 {[%emt 0:00:41]} 26. Ng2 {[%emt 0:01:03]} (26. Re1 $142) 26... Bh6 $17 {[%emt 0:00:42]} 27. Ke2 {[%emt 0:00:28]} Nf5+ {[%emt 0:03:17]} 28. Kd3 {[%emt 0:00:15]} c5 {[%emt 0:01:58]} 29. Kc4 {[%emt 0:00:12]} Re2 {[%emt 0:02:04]} (29... Nd6+ $19 30. Kb3 c4+ 31. Ka2 Re2) 30. dxc5 {[%emt 0:01:08]} Rxd1 {[%emt 0:00:05] 0x0.00209c05ad56dp-1022s more active pieces.} 31. Rxd1 {[%emt 0:00:02]} Rxf2 {[%emt 0:00:06]} (31... Rxb2 $6 32. Nge1 $11) 32. Nfe1 {[%emt 0:00:39] Prevents Rc2+.} Rxb2 {[%emt 0:01:33]} 33. Kc3 {[%emt 0:00:24] [#]} Re2 {[%emt 0:00:50]} 34. Rb1 {[%emt 0:00:16]} Re7 {[%emt 0:00:50]} ({Much worse is} 34... Bd2+ $6 35. Kd3 Rf2 36. Rxb7+ Ke6 37. Rxa7 $11) 35. Nd3 {[%emt 0:00:32]} Rc7 {[%emt 0:01:15]} 36. Kb4 {[%emt 0:00:54]} (36. a4 $17) 36... Bf8 $19 {[%emt 0:00:55]} 37. Kb5 {[%emt 0:00:33] [#]} Nd4+ $1 {[%emt 0:00:35]} 38. Ka4 {[%emt 0:00:18]} b6 {[%emt 0:00:30][%cal Bb7b6,Bb6c5,Bc5c4,Bc4c3,Bc3c2][%mdl 32]} 39. Ngf4 {[%emt 0:00:55]} bxc5 {[%emt 0:00:29]} 40. Nxh5 $2 {[%emt 0:00:00]} (40. Nc1) 40... c4 {[%emt 0:00:00] Black is clearly winning.} 41. Nb4 {[%emt 0:04:02]} Bxb4 {[%emt 0:07:10]} 42. axb4 {[%emt 0:00:21]} c3 {[%emt 0:00:35] And now ...c2 would win.} 43. Nf4 {[%emt 0:02:56]} Rc6 {[%emt 0:00:43][%cal Rc6a6]} 44. b5 {[%emt 0:00:49] Against Ra6+} c2 {[%emt 0:00:07]} 45. Rc1 {[%emt 0:00:17]} Rc4+ {[%emt 0:00:08] Weighted Error Value: White=0.47/Black=0.06 (flawless)} 0-1

[Event "79th LOTTO Polish-ch 2022"]
[Site "Kruszwica"]
[Date "2022.05.09"]
[Round "1.7"]
[White "Licznerski, Lukasz"]
[Black "Tomczak, Jacek"]
[Result "1/2-1/2"]
[ECO "B51"]
[WhiteElo "2439"]
[BlackElo "2584"]
[Annotator "TA"]
[PlyCount "146"]
[EventDate "2022.05.10"]
[EventType "k.o."]
[EventCountry "POL"]
[SourceTitle "playchess.com"]
[Source "ChessBase"]
[SourceQuality "1"]
[TimeControl "40/5400+30:1800+30"]

{[%evp 13,146,4,18,18,16,-31,-17,-31,-30,-23,-14,-11,0,-8,0,-22,-5,-13,0,-9,-18,-10,0,0,41,0,47,-190,-64,-69,-73,-69,0,-6,-5,-58,-66,-199,-213,-213,-206,-205,-204,-210,-189,-233,-188,-188,-188,-188,-188,-188,-188,-188,-188,-188,-188,-188,-188,-188,-188,-188,-177,-188,-188,-188,-188,-188,-181,-181,-181,-181,-181,-181,-181,-188,-188,-181,-181,-181,-181,-181,-181,-181,-181,-181,-181,-181,-187,-250,-250,-250,-250,-250,-250,-250,-189,-250,0,0,-8,-36,0,-409,-268,-191,0,-409,-409,-1436,-1412,-879,-668,-12836,-12836,-12833,-37,-74,0,-140,0,0,0,0,0,-57,0,0,0,0,0,0,0,0,0]} 1. e4 {[%emt 0:00:07]} c5 {[%emt 0:00:09]} 2. Nf3 {[%emt 0:00:14]} d6 {[%emt 0:00:13]} 3. Bb5+ {[%emt 0:00:22]} Nd7 {[%emt 0:00:27]} 4. c3 {[%emt 0:00:18]} Ngf6 {[%emt 0:00:42]} 5. Qe2 {[%emt 0:00:28]} a6 {[%emt 0:00:31]} 6. Ba4 {[%emt 0:00:03]} b5 {[%emt 0:01:06]} 7. Bc2 {[%emt 0:00:07]} e5 {[%emt 0:00:30]} 8. d4 {[%emt 0:00:45] B51: Sicilian: Moscow Variation (3 Bb5+) without 3...Bd7.} Be7 {[%emt 0:00:22]} 9. Nbd2 {[%emt 0:06:01]} (9. d5 $11) 9... cxd4 $15 {[%emt 0:08:17]} 10. cxd4 {[%emt 0:00:09]} O-O {[%emt 0:00:12]} 11. O-O {[%emt 0:09:00]} Qc7 {[%emt 0:07:09] [#]} 12. Nb3 $146 {[%emt 0:09:00]} ({Predecessor:} 12. Bd3 Re8 13. a4 bxa4 14. Rxa4 exd4 15. Rxd4 d5 16. b4 Bd6 17. Bb2 Bb7 18. Bb1 {0-1 (43) Thimm,T-Nevednichy,V (2575) Senden 2003}) 12... a5 {[%emt 0:07:24]} 13. Bd3 {[%emt 0:10:02]} a4 {[%emt 0:06:26]} 14. Nbd2 {[%emt 0:00:02]} b4 {[%emt 0:00:27]} 15. Nc4 {[%emt 0:01:18]} exd4 {[%emt 0:10:33]} 16. Nxd4 {[%emt 0:01:29]} Nc5 {[%emt 0:00:30]} 17. Bf4 {[%emt 0:08:49]} Ba6 {[%emt 0:11:19] Inhibits Nb5.} 18. Nf5 {[%emt 0:03:29]} Rad8 {[%emt 0:15:31]} 19. Rfc1 {[%emt 0:07:03]} (19. Nxe7+ Qxe7 20. Rfe1 Qe6 $19) (19. Rac1 $5 {[%cal Re4e5]} Rfe8 20. Rfd1 $11 (20. Nxe7+ $2 Qxe7 21. Be3 Nfxe4 $19)) 19... Rfe8 {[%emt 0:10:57]} (19... g6 $11 20. e5 (20. Nxe7+ Qxe7 21. Bg5 Rfe8 $15) 20... dxe5 21. Nxe5 (21. Bxe5 Qd7 $11) 21... gxf5 22. Bxa6 Bd6) 20. Bg5 $2 {[%emt 0:10:26]} (20. Nxe7+ Qxe7 21. Bxd6 Rxd6 22. Nxd6 Bxd3 $17) (20. Bxd6 $14 {stays ahead.} Bxd6 21. Ncxd6 Rxd6 22. Nxd6 Qxd6 23. Bxa6) 20... d5 {[%emt 0:06:23]} (20... Nxd3 $19 21. Qxd3 d5 22. exd5 Rxd5) 21. Nce3 $1 {[%emt 0:01:43]} Bxd3 {[%emt 0:02:28]} 22. Qxd3 {[%emt 0:00:16]} Qe5 {[%emt 0:04:10]} ({Resist} 22... dxe4 23. Qb5 Bf8 24. Nxg7 $1 (24. Qxb4 Re6 $11) 24... Kxg7 25. Bxf6+ Kxf6 26. Qxe8 $1 Rxe8 27. Nd5+ Ke5 28. Nxc7 $14) (22... d4 $1 $15 23. Nxe7+ Qxe7 24. Rxc5 Qxc5 25. Bxf6 gxf6) 23. Nxe7+ {[%emt 0:06:21]} Qxe7 {[%emt 0:00:28]} 24. Rxc5 {[%emt 0:06:59]} Qxc5 {[%emt 0:00:12]} 25. Bxf6 {[%emt 0:00:04]} (25. exd5 $1 $15 Qd6 26. Qf5) 25... dxe4 $19 {[%emt 0:03:35]} ({Worse is} 25... gxf6 26. exd5 Rxe3 27. Qxe3 Qxe3 28. fxe3 $11) 26. Qxd8 {[%emt 0:06:31]} Rxd8 {[%emt 0:00:03]} 27. Bxd8 {[%emt 0:00:04]} Qd4 {[%emt 0:00:06][%csl LRb2,LRd8]} 28. Rd1 {[%emt 0:06:32]} Qxb2 {[%emt 0:00:04]} 29. Be7 {[%emt 0:01:22][%cal Rd1d8]} h6 {[%emt 0:00:19]} 30. h4 {[%emt 0:01:14]} b3 {[%emt 0:01:30]} 31. axb3 {[%emt 0:00:07]} axb3 {[%emt 0:00:20] Hoping for ...Qa2.} 32. Bc5 {[%emt 0:02:02]} Qa2 {[%emt 0:01:04] And now ...b2 would win.} 33. Bd4 {[%emt 0:01:16]} b2 {[%emt 0:00:14]} 34. Bxb2 {[%emt 0:00:04]} Qxb2 {[%emt 0:00:05][%mdl 4096] Endgame KQ-KRN} 35. h5 {[%emt 0:03:33]} Qe2 {[%emt 0:00:22]} 36. Rd8+ {[%emt 0:00:35]} Kh7 {[%emt 0:00:02]} 37. g4 {[%emt 0:00:29]} f5 {[%emt 0:02:24]} 38. gxf5 {[%emt 0:00:12]} Qxh5 {[%emt 0:00:29]} 39. Rd6 {[%emt 0:00:26]} Qg5+ {[%emt 0:00:22]} 40. Kf1 {[%emt 0:00:00]} h5 {[%emt 0:00:00]} 41. Rg6 {[%emt 0:02:16]} Qf4 {[%emt 0:03:42]} 42. Rg3 {[%emt 0:03:23]} Kg8 {[%emt 0:03:33]} 43. Rh3 {[%emt 0:05:06]} Qg5 {[%emt 0:00:29]} 44. Rg3 {[%emt 0:00:02]} Qh4 {[%emt 0:00:21]} 45. Kg2 {[%emt 0:00:29]} Kf7 {[%emt 0:00:40]} ({Not} 45... Qf4 $2 46. Kg1 $19) 46. Rh3 {[%emt 0:00:12]} Qf4 {[%emt 0:00:44]} 47. Kg1 {[%emt 0:01:30]} Qh6 {[%emt 0:02:57]} 48. Rg3 {[%emt 0:01:13]} Qa6 {[%emt 0:03:07]} 49. Kg2 {[%emt 0:03:49]} Qe2 {[%emt 0:01:15]} 50. Rh3 {[%emt 0:00:53]} Kf6 {[%emt 0:00:39]} 51. Rg3 {[%emt 0:00:34]} (51. Rh4 $142) 51... h4 {[%emt 0:08:06]} 52. Rh3 {[%emt 0:00:18]} Qh5 {[%emt 0:00:29]} 53. Kg1 {[%emt 0:11:27]} Ke5 {[%emt 0:00:38]} 54. Kg2 {[%emt 0:01:00]} Kd4 {[%emt 0:01:33]} 55. Kg1 {[%emt 0:00:41]} (55. Kf1 $142) 55... Kd3 $2 {[%emt 0:06:56]} ({Better is} 55... Qg5+ $19 56. Kf1 Ke5) 56. Ng2+ $1 $11 {[%emt 0:04:22]} Kd2 {[%emt 0:00:04]} 57. Rxh4 {[%emt 0:00:45]} Qxf5 {[%emt 0:00:05] aiming for ...Ke2.} 58. Rf4 $2 {[%emt 0:00:14][%mdl 8192]} (58. Ne3 $11 Qf3 59. Kf1) 58... Qg6 {[%emt 0:01:26] Strongly threatening ...Ke2.} 59. Rh4 {[%emt 0:00:59]} Qf5 {[%emt 0:01:00] Prevents Rh3.} (59... e3 $1 {[%cal Re3e2]} 60. fxe3 Ke2) 60. Rf4 $19 {[%emt 0:00:07]} Qe5 {[%emt 0:00:32] White must now prevent ...Ke2.} 61. Rf8 {[%emt 0:01:02] [#]} (61. Rg4 $142) 61... Qa1+ $1 {[%emt 0:00:31]} 62. Kh2 {[%emt 0:00:02]} Ke2 {[%emt 0:00:22] ...g6 is the strong threat.} 63. Ne3 {[%emt 0:00:18]} Qe5+ {[%emt 0:00:39]} 64. Kg1 {[%emt 0:00:35] [#]} Qd6 $2 {[%emt 0:02:31]} (64... Qg5+ $1 $19 65. Kh1 Qe7) 65. Rf5 $15 {[%emt 0:00:31]} g6 {[%emt 0:01:50]} ({Black should try} 65... Qd8 $17 66. Kg2 Qd6) 66. Rf7 {[%emt 0:00:17]} (66. Rg5 $1 $11 {keeps the balance.} Qd2 67. Rg2 Qc1+ 68. Kh2) 66... g5 {[%emt 0:00:30]} (66... Qc5 $17 67. Kg2 Qe5) 67. Kg2 $11 {[%emt 0:00:20]} Qh6 {[%emt 0:00:53]} 68. Ra7 {[%emt 0:02:24]} Qe6 {[%emt 0:00:14]} ({Black should play} 68... Qf8 $11 69. Ra2+ Kd3) 69. Ra5 $15 {[%emt 0:00:34]} g4 {[%emt 0:00:26]} (69... Qf7 $1 $15 70. Rf5 Qg7) 70. Rf5 $11 {[%emt 0:00:23] The position is equal.} Qg6 {[%emt 0:00:50]} 71. Kg3 {[%emt 0:00:13]} Qh7 {[%emt 0:00:49] Threatens to win with ...Qh3+.} 72. Kxg4 {[%emt 0:00:44] Active counter play!} Qh2 {[%emt 0:00:20]} 73. Rf4 {[%emt 0:00:25]} Qxf2 {[%emt 0:00:42] Black had all chances to win.  Weighted Error Value: White=0.32/Black=0.27 (precise)} 1/2-1/2